lending/lending_fUSD_20250418
["ID","MTS","AMOUNT","RATE_DAILY","PERIOD"]
[358371508,1745008503969,-300.0,0.00019999,2]
[358371509,1745008503994,-189450.91375585,0.0002,2]
[358371510,1745008505352,-200000.0,0.0002,2]
[358371512,1745008553136,-1000.0,0.000199,2]
[358371513,1745008553161,-450.0,0.00019999,2]
[358371514,1745008553186,-198550.0,0.0002,2]
[358371519,1745009012247,25942.0,0.00048279,30]
[358371520,1745009087740,-1063.91,0.00019673,2]
[358371521,1745009087765,-106.143,0.00019784,2]
[358371523,1745009143763,-250.0,0.00019458,2]
[358371524,1745009161573,-663.07337703,0.00019412,2]
[358371528,1745009225136,-835.97775746,0.00019412,2]
[358371529,1745009225740,-251.92214903,0.00019412,2]
[358371530,1745009233098,-954.73344573,0.00019412,2]
[358371531,1745009233904,-296.45780896,0.00019412,2]
[358371532,1745009246914,-151.24322555,0.00019412,2]
[358371533,1745009253089,-846.59223624,0.00019412,2]
[358371534,1745009253111,-200.0,0.00019412,2]
[358371535,1745009253132,-572.25,0.00019458,2]
[358371536,1745009253154,-630.4886088,0.00019601,2]
[358371537,1745009253175,-592.02,0.00019601,2]
[358371538,1745009253199,-140.937,0.00019784,2]
[358371539,1745009253219,-689.1618096,0.00019799,2]
[358371540,1745009253241,-228.0,0.00019899,2]
[358371541,1745009253264,-300.0,0.00019899,2]
[358371542,1745009253285,-227.32027829,0.00019899,2]
[358371543,1745009253308,-203.4307,0.000199,2]
[358371544,1745009253329,-581.80257828,0.000199,2]
[358371545,1745009253361,-418.19742172,0.000199,2]
[358371546,1745009253383,-409.7454,0.000199,2]
[358371547,1745009253406,-1608.58092417,0.000199,2]
[358371548,1745009253428,-7953.26506176,0.000199,2]
[358371549,1745009263738,800.93,0.00017764,2]
[358371550,1745009359669,23944.66073875,0.00018,2]
[358371554,1745009407360,-326.88049387,0.00019622,2]
[358371559,1745009431885,-78.79950613,0.00019622,2]
[358371560,1745009431895,-654.7037191,0.00019799,2]
[358371561,1745009431904,-204.2371107,0.00019799,2]
[358371562,1745009431915,-204.23711069,0.00019849,2]
[358371563,1745009431924,-250.0,0.00019852,2]
[358371564,1745009431934,-300.0,0.00019899,2]
[358371565,1745009431943,-204.23711069,0.00019899,2]
[358371566,1745009431952,-1832.87902461,0.000199,2]
[358371567,1745009431961,-1326.00150128,0.000199,2]
[358371568,1745009431971,-8840.318026,0.000199,2]
[358371569,1745009431981,-1000.0,0.000199,2]
[358371570,1745009431991,-304.32,0.00019923,2]
[358371571,1745009432000,-500.0,0.00019973,2]
[358371572,1745009432010,-320.55614638,0.00019973,2]
[358371573,1745009432019,-500.0,0.00019973,2]
[358371574,1745009432030,-500.0,0.00019973,2]
[358371575,1745009432039,-500.0,0.00019973,2]
[358371576,1745009432048,-498.26301178,0.00019973,2]
[358371577,1745009432057,-504.05263074,0.00019973,2]
[358371578,1745009432067,-500.0,0.00019973,2]
[358371579,1745009432077,-1000.0,0.00019985,2]
[358371580,1745009432086,-2691.2721326,0.00019986,2]
[358371581,1745009432096,-2302.1747779,0.00019986,2]
[358371582,1745009432106,-22801.5342191,0.00019986,2]
[358371583,1745009432115,-1042.0948017,0.00019986,2]
[358371584,1745009432125,-857.0629164,0.00019986,2]
[358371585,1745009432135,-773.09300022,0.00019989,2]
[358371586,1745009432144,-152.68,0.0001999,2]
[358371587,1745009432154,-152.68,0.0001999,2]
[358371588,1745009432163,-152.68,0.0001999,2]
[358371589,1745009432173,-152.68,0.0001999,2]
[358371590,1745009432182,-152.68,0.0001999,2]
[358371591,1745009432192,-152.68,0.0001999,2]
[358371592,1745009432201,-152.68,0.0001999,2]
[358371593,1745009432211,-215.47903699,0.0001999,2]
[358371594,1745009432220,-215.47903699,0.0001999,2]
[358371595,1745009432230,-215.47903699,0.0001999,2]
[358371596,1745009432239,-233.45,0.0001999,2]
[358371597,1745009432249,-233.45,0.0001999,2]
[358371598,1745009432258,-233.45,0.0001999,2]
[358371599,1745009432267,-233.45,0.0001999,2]
[358371600,1745009432278,-233.45,0.0001999,2]
[358371601,1745009432287,-233.45,0.0001999,2]
[358371602,1745009432296,-233.45,0.0001999,2]
[358371603,1745009432306,-233.45,0.0001999,2]
[358371604,1745009432315,-233.45,0.0001999,2]
[358371605,1745009432324,-233.45,0.0001999,2]
[358371606,1745009432334,-174.62188396,0.00019998,2]
[358371607,1745009432342,-183.92727904,0.00019998,2]
[358371608,1745009432351,-199.91514749,0.00019998,2]
[358371609,1745009432362,-305.29465451,0.00019999,2]
[358371610,1745009432370,-500.0,0.00019999,2]
[358371611,1745009432379,-500.0,0.00019999,2]
[358371612,1745009432390,-10000.0,0.00019999,2]
[358371613,1745009432399,-2144.18,0.00019999,2]
[358371614,1745009432408,-514262.67891383,0.0002,2]
[358371615,1745009432426,-452.95011032,0.0002,2]
[358371616,1745009432437,-3553.08651181,0.0002,2]
[358371617,1745009432452,-2891.6764344,0.0002,2]
[358371661,1745009433023,-5026.918,0.0002,2]
[358371664,1745009433039,-86263.54291947,0.0002,2]
[358371666,1745009433051,-193538.74445912,0.0002,2]
[358371668,1745009433062,-377.70887099,0.0002,2]
[358371737,1745009438142,-526932.84298803,0.0002,2]
[358371738,1745009438152,-1293980.98112109,0.0002,2]
[358371739,1745009438170,-250.0,0.0002,2]
[358371740,1745009438181,-250.0,0.0002,2]
[358371741,1745009438191,-250.0,0.0002,2]
[358371742,1745009438201,-250.0,0.0002,2]
[358371743,1745009438211,-378818.86270608,0.0002,2]
[358371744,1745009438220,-459725.39382724,0.0002,2]
[358371745,1745009438233,-340569.66230341,0.0002,2]
[358371746,1745009438245,-1436.58400605,0.0002,2]
[358371747,1745009438257,-515.85304197,0.0002,2]
[358371748,1745009438269,-7549.38682885,0.0002,2]
[358371749,1745009438306,-496.32427049,0.0002,2]
[358371765,1745009440184,-0.09279903,0.0002,2]
[358371776,1745009440284,-901.29876485,0.0002,2]
[358371777,1745009440296,-3210144.67530984,0.0002,2]
[358371796,1745009440450,-808860.56713653,0.0002,2]
[358371797,1745009440654,-52597.25615459,0.0002,2]
[358371798,1745009440664,-52597.25615459,0.0002,2]
[358371799,1745009440673,-52597.25615459,0.0002,2]
[358371800,1745009440683,-165.67949255,0.0002,2]
[358371801,1745009440692,-2201249.99322818,0.0002,2]
[358371802,1745009440701,-7917.86036588,0.0002,2]
[358371803,1745009440713,-384.4740583,0.0002,2]
[358371804,1745009440725,-87036.44377286,0.0002,2]
[358371805,1745009440737,-6468.04706801,0.0002,2]
[358371806,1745009440748,-85196.82713881,0.0002,2]
[358372041,1745009443040,-224459.62888926,0.0002,2]
[358372043,1745009443053,-1009.99586574,0.0002,2]
[358372049,1745009443101,-161342.81991897,0.0002,2]
[358372333,1745009446027,-2121.274295,0.0002,2]
[358373872,1745009541535,173.08,0.00027425,30]
[358373875,1745009658936,50000.0,0.00048301,30]
[358373876,1745009662991,50000.0,0.00048301,31]
[358373877,1745009667070,50000.0,0.00048301,32]
[358373878,1745009670591,50000.0,0.00048301,33]
[358373879,1745009673983,50000.0,0.00048301,34]
[358373881,1745009707951,-200.0,0.0001946,2]
[358373882,1745009762188,-192.10435699,0.0001946,2]
[358373883,1745009781183,-178.81361202,0.00019362,2]
[358373885,1745009861481,-315.07197467,0.00019362,2]
[358373886,1745009936209,-157.68,0.00019362,2]
[358373887,1745009949704,250.0,0.00017,2]
[358373888,1745009951934,-167.80337916,0.00019,2]
[358373891,1745010011702,559.907736,0.00018905,2]
[358373893,1745010072096,203.94,0.00015325,2]
[358373902,1745010141412,-132.19662084,0.00019,2]
[358373903,1745010141437,-133.54155984,0.00019107,2]
[358373905,1745010228943,-151.87998897,0.00019107,2]
[358373907,1745010264305,208.57,0.00016712,2]
[358373910,1745010328329,-63.01845119,0.00019107,2]
[358373911,1745010328355,-250.0,0.00019146,2]
[358373912,1745010328378,-15.24791671,0.0001916,2]
[358373913,1745010346878,-224.28030506,0.000191,2]
[358373918,1745010428137,-342.23314686,0.000191,2]
[358373919,1745010428158,-181.13208329,0.0001916,2]
[358373920,1745010428180,-764.09,0.0001916,2]
[358373921,1745010428200,-1143.05,0.0001916,2]
[358373922,1745010428220,-2248.90114863,0.00019191,2]
[358373923,1745010428240,-250.0,0.00019291,2]
[358373924,1745010428262,-164.85,0.00019291,2]
[358373925,1745010428284,-300.0,0.00019393,2]
[358373926,1745010428304,-3915.41,0.00019394,2]
[358373927,1745010428324,-150.0,0.00019394,2]
[358373928,1745010428345,-597.02,0.00019394,2]
[358373929,1745010428365,-381.02989098,0.00019459,2]
[358373930,1745010428385,-118.69564301,0.0001946,2]
[358373931,1745010428410,-68.78972461,0.0001946,2]
[358373932,1745010435109,-3985.21027539,0.0001946,2]
[358373933,1745010435131,-151.24,0.0001946,2]
[358373934,1745010435152,-233.23,0.00019521,2]
[358373935,1745010435174,-708.28232963,0.00019552,2]
[358373936,1745010435209,-964.44898437,0.00019552,2]
[358373938,1745010510937,-414.52409301,0.00019507,2]
[358373939,1745010595372,170.91,0.00027425,30]
[358373943,1745010632074,-200.0,0.0001916,2]
[358373944,1745010632085,-1467.34,0.0001916,2]
[358373945,1745010632106,-151.88,0.00019457,2]
[358373946,1745010632121,-1422.38590699,0.00019507,2]
[358373947,1745010632138,-300.0,0.00019551,2]
[358373948,1745010632149,-300.0,0.00019551,2]
[358373949,1745010632159,-22227.268686,0.00019552,2]
[358373950,1745010632170,-38345.90876211,0.00019552,2]
[358373951,1745010632181,-250.0,0.0001956,2]
[358373952,1745010632194,-1000.0,0.00019632,2]
[358373953,1745010632210,-621.9685332,0.00019799,2]
[358373954,1745010632221,-1443.0,0.000198,2]
[358373955,1745010632232,-309.32,0.00019821,2]
[358373956,1745010632244,-181.88,0.00019875,2]
[358373957,1745010632256,-182.36325527,0.000199,2]
[358373958,1745010632268,-173.63272893,0.000199,2]
[358373959,1745010632279,-197.3858004,0.000199,2]
[358373960,1745010632290,-1148.7752,0.000199,2]
[358373961,1745010632301,-1421.1486,0.000199,2]
[358373962,1745010632313,-22637.22213536,0.000199,2]
[358373964,1745010632332,-2394.84173808,0.000199,2]
[358373966,1745010632346,-386.88397494,0.000199,2]
[358373969,1745010632359,-3636.77596321,0.000199,2]
[358373971,1745010632374,-2453.3852378,0.000199,2]
[358373973,1745010632385,-5635.0,0.00019973,2]
[358373975,1745010632398,-410.33492546,0.00019973,2]
[358373977,1745010632409,-3231.0,0.00019973,2]
[358373980,1745010632420,-406.5711282,0.00019973,2]
[358373982,1745010632431,-500.0,0.00019973,2]
[358373984,1745010632442,-23.61971004,0.00019973,2]
[358373986,1745010632455,-481.78001618,0.00019973,2]
[358373988,1745010632466,-62.5713075,0.00019973,2]
[358373992,1745010632480,-437.4286925,0.00019973,2]
[358373995,1745010632491,-1299.16533966,0.00019973,2]
[358373998,1745010632504,-491.06720059,0.00019973,2]
[358374003,1745010632517,-425.90445975,0.00019973,2]
[358374006,1745010632527,-2076.6910842,0.00019986,2]
[358374009,1745010632539,-685.0098641,0.00019986,2]
[358374012,1745010632552,-10999.17359316,0.00019986,2]
[358374170,1745010638215,-2046.49039039,0.00019986,2]
[358374171,1745010638270,-3440.23827865,0.00019986,2]
[358374172,1745010638282,-170.71675579,0.0001999,2]
[358374173,1745010638292,-300.0,0.00019999,2]
[358374174,1745010638303,-2001.48291782,0.00019999,2]
[358374175,1745010638313,-8027.11652647,0.00019999,2]
[358374176,1745010638376,-513.13364415,0.00019999,2]
[358374177,1745010638387,-16531.87982938,0.00019999,2]
[358374178,1745010638397,-2697105.4454748,0.0002,2]
[358374179,1745010638408,-340569.66230341,0.0002,2]
[358374188,1745010640657,-0.0018429,0.0002,2]
[358374189,1745010640672,-40363.67252562,0.0002,2]
[358374190,1745010640683,-1310.29847379,0.0002,2]
[358374191,1745010640693,-3210144.67530984,0.0002,2]
[358374192,1745010640705,-2239.99555988,0.0002,2]
[358374193,1745010640716,-333.81892786,0.0002,2]
[358374194,1745010640727,-21619.33835836,0.0002,2]
[358374195,1745010640738,-45996.10689029,0.0002,2]
[358374196,1745010640749,-10415.13941833,0.0002,2]
[358374197,1745010640760,-4365.33479156,0.0002,2]
[358374198,1745010640771,-6853.72080496,0.0002,2]
[358374199,1745010640782,-374.92276963,0.0002,2]
[358374200,1745010640793,-4097.62941666,0.0002,2]
[358374207,1745010643203,-336793.25536083,0.0002,2]
[358374208,1745010643257,-12265.62736249,0.0002,2]
[358374209,1745010643269,-23902.04858042,0.0002,2]
[358374218,1745010646221,-1270.760705,0.0002,2]
[358374219,1745010646276,-26896.52687513,0.0002,2]
[358374220,1745010646288,-378.940185,0.0002,2]
[358374221,1745010646336,-398.90876,0.0002,2]
[358374222,1745010646395,-613.2,0.0002,2]
[358374223,1745010646407,-467.19,0.0002,2]
[358374224,1745010646455,-634.40000001,0.0002,2]
[358374230,1745010826959,-166.98,0.00019735,2]
[358374231,1745010826984,-590.8701065,0.00019799,2]
[358374232,1745010827007,-3010.3183,0.000199,2]
[358374233,1745010827029,-1649.6667,0.000199,2]
[358374234,1745010827055,-169.0254,0.000199,2]
[358374235,1745010827077,-158.2225,0.000199,2]
[358374236,1745010827099,-500.0,0.00019973,2]
[358374237,1745010827120,-1380.435672,0.00019986,2]
[358374238,1745010827142,-1844.8591333,0.00019986,2]
[358374239,1745010827166,-3220.4337545,0.00019986,2]
[358374240,1745010827189,-1000.0,0.00019999,2]
[358374241,1745010827212,-205628.6939015,0.0002,2]
[358374242,1745010827235,-3950.0,0.0002,2]
[358374243,1745010827259,-1249.50017022,0.0002,2]
[358374244,1745010827283,-11821.3882065,0.0002,2]
[358374245,1745010827310,-1008.17510873,0.0002,2]
[358374246,1745010827334,-1752.79808869,0.0002,2]
[358374247,1745010827357,-24975.01857374,0.0002,2]
[358374251,1745011209486,490281.77074723,0.000482,30]
[358374255,1745011435898,831.18,0.00017915,2]
[358374261,1745011535624,-1000.0,0.0001916,2]
[358374262,1745011535654,-250.0,0.0001977,2]
[358374263,1745011535683,-196.34138022,0.0001978,2]
[358374264,1745011535713,-561.3266012,0.00019799,2]
[358374265,1745011535742,-355.25021123,0.000198,2]
[358374266,1745011535775,-11333.08180735,0.000199,2]
[358374267,1745011536584,-156.75390703,0.00019,2]
[358374268,1745011555366,4955.42306302,6.94e-05,2]
[358374269,1745011626729,278.5955,0.000153,2]
[358374270,1745011627304,-193.83217837,0.00018999,2]
[358374271,1745011630116,-106.16782163,0.00018999,2]
[358374272,1745011630138,-850.0,0.00018999,2]
[358374273,1745011630162,-300.0,0.00018999,2]
[358374274,1745011630190,-9258.21348071,0.00019,2]
[358374275,1745011630393,2640.86638287,0.00015,2]
[358374276,1745011631124,-4957.02415235,0.00019,2]
[358374277,1745011631910,-232.24,0.00019,2]
[358374278,1745011633574,3852.09546618,0.00015,2]
[358374279,1745011642092,-725.96059764,0.00019,2]
[358374280,1745011644176,-197.68159628,0.00019,2]
[358374281,1745011649101,-963.3428526,0.00019,2]
[358374282,1745011649742,-152.8072001,0.00019,2]
[358374283,1745011675837,1713.7387545,0.000181,2]
[358374286,1745011706392,169.47,0.00027425,30]
[358374290,1745011713790,3567.86360579,0.000149,2]
[358374291,1745011717073,-256.55848627,0.00019,2]
[358374292,1745011722379,-198.61,0.00019,2]
[358374293,1745011722837,23214.04458537,0.00013368,2]
[358374297,1745011758128,154.61517874,0.000189,2]
[358374298,1745011761665,250.0,0.00017,2]
[358374300,1745011763621,-296.44,0.00019,2]
[358374301,1745011790236,-4351.31496473,0.00019,2]
[358374302,1745011790478,-4351.31496473,0.00019,2]
[358374303,1745011790516,-1499.85951119,0.00019,2]
[358374304,1745011792350,-193.18434558,0.00019,2]
[358374305,1745011802379,-175.07046778,0.00018999,2]
[358374310,1745011832316,-24.92953222,0.00018999,2]
[358374311,1745011832326,-300.0,0.00018999,2]
[358374312,1745011832336,-282.04046778,0.00018999,2]
[358374313,1745011832391,-17.95953222,0.00018999,2]
[358374314,1745011832401,-276.64668848,0.00019,2]
[358374315,1745011832412,-44494.58478299,0.00019,2]
[358374316,1745011832424,-5244.80522641,0.00019,2]
[358374317,1745011832434,-969.91,0.00019,2]
[358374318,1745011832444,-300.0,0.00019,2]
[358374319,1745011832454,-101.18477335,0.0001902,2]
[358374513,1745011835224,-898.81522665,0.0001902,2]
[358374517,1745011838633,-200.0,0.00019517,2]
[358374518,1745011838644,-158.2225,0.000196,2]
[358374519,1745011838654,-3316.38744329,0.0001961,2]
[358374520,1745011838663,-163847.50441741,0.00019621,2]
[358374521,1745011838672,-158.2225,0.0001965,2]
[358374522,1745011838683,-243.36,0.000197,2]
[358374523,1745011838693,-158.2225,0.000197,2]
[358374524,1745011838703,-158.2225,0.0001975,2]
[358374525,1745011838713,-533.2602711,0.00019799,2]
[358374526,1745011838723,-158.2225,0.000198,2]
[358374527,1745011838733,-174.93351097,0.0001981,2]
[358374528,1745011838743,-174.93351089,0.0001982,2]
[358374529,1745011838753,-174.93351089,0.0001983,2]
[358374530,1745011838763,-174.93351089,0.0001984,2]
[358374531,1745011838772,-174.93351089,0.0001985,2]
[358374532,1745011838782,-158.2225,0.0001985,2]
[358374534,1745011838791,-174.93351089,0.0001986,2]
[358374536,1745011838800,-3028.2515078,0.0001987,2]
[358374538,1745011838810,-174.93351089,0.0001987,2]
[358374540,1745011838819,-174.93351089,0.0001988,2]
[358374542,1745011838828,-174.93351089,0.0001989,2]
[358374544,1745011838838,-187475.00758305,0.000199,2]
[358374546,1745011838847,-174.93351089,0.000199,2]
[358374548,1745011838856,-177.40018702,0.000199,2]
[358374550,1745011838867,-158.2225,0.000199,2]
[358374552,1745011838876,-156.74,0.00019951,2]
[358374554,1745011838885,-200.0,0.00019951,2]
[358374556,1745011838894,-382.04,0.00019951,2]
[358374558,1745011838903,-150.0,0.00019951,2]
[358374560,1745011838913,-500.0,0.00019973,2]
[358374562,1745011838922,-500.0,0.00019973,2]
[358374564,1745011838931,-2493.658,0.00019986,2]
[358374566,1745011838941,-4700.0520569,0.00019986,2]
[358374568,1745011838950,-2692.4739415,0.00019986,2]
[358374570,1745011838959,-21097.2260448,0.00019986,2]
[358374572,1745011838968,-1594.5672934,0.00019986,2]
[358374574,1745011838977,-227.21467556,0.00019986,2]
[358374576,1745011838986,-170.71675579,0.0001999,2]
[358374578,1745011838996,-13370.89018837,0.0002,2]
[358374580,1745011839006,-150.0,0.0002,2]
[358374582,1745011839015,-169.92137793,0.0002,2]
[358374584,1745011839024,-2303403.76095128,0.0002,2]
[358374586,1745011839035,-340569.66230341,0.0002,2]
[358374771,1745011840769,-548.00952576,0.0002,2]
[358374776,1745011840938,-483759.1957837,0.0002,2]
[358374968,1745011846306,-378.79520001,0.00019799,2]
[358374969,1745011846586,-127.80205759,0.00019799,2]
[358374970,1745011846596,-1109.03294241,0.0002,2]
[358375008,1745012180715,182.28,0.00015938,2]
[358375011,1745012523622,-250.0,0.00019144,2]
[358375015,1745012620728,-157.98264617,0.00019087,2]
[358375016,1745012645336,-224.06735383,0.00019087,2]
[358375017,1745012645364,-134.67795517,0.00019117,2]
[358375019,1745012704933,823.01,0.00017227,2]
[358375022,1745012815924,168.5,0.00027425,30]
[358375023,1745012834097,-150.0,0.00018992,2]
[358375024,1745012834118,-805.60148843,0.00019117,2]
[358375025,1745012839157,-554.5905564,0.00019117,2]
[358375026,1745012839179,-200.0,0.00019219,2]
[358375027,1745012839201,-250.0,0.00019239,2]
[358375028,1745012839223,-3277.55,0.00019259,2]
[358375029,1745012839244,-630.4886088,0.00019259,2]
[358375030,1745012839265,-166.78,0.00019344,2]
[358375031,1745012839288,-296.44,0.0001939,2]
[358375032,1745012839310,-823.01,0.00019491,2]
[358375033,1745012839330,-607.98,0.00019518,2]
[358375034,1745012839352,-607.3,0.00019587,2]
[358375035,1745012839372,-211.2,0.0001968,2]
[358375036,1745012839393,-515.7254852,0.00019799,2]
[358375037,1745012839413,-227.32027829,0.00019809,2]
[358375038,1745012839436,-300.0,0.00019809,2]
[358375039,1745012839457,-1733.94053575,0.0001981,2]
[358375040,1745012840091,-824.98118139,0.0001981,2]
[358375041,1745012847110,-5186.54130726,0.0001981,2]
[358375043,1745012977261,-163.08840372,0.00018992,2]
[358375047,1745013031420,-8.84159628,0.00018992,2]
[358375048,1745013031429,-1000.0,0.0001927,2]
[358375049,1745013031438,-200.0,0.00019388,2]
[358375050,1745013031458,-200.0,0.00019433,2]
[358375051,1745013031467,-489.9392109,0.00019799,2]
[358375052,1745013031477,-250.0,0.00019805,2]
[358375053,1745013031486,-300.0,0.00019809,2]
[358375054,1745013031495,-228.0,0.00019899,2]
[358375055,1745013031505,-300.0,0.00019899,2]
[358375056,1745013031514,-156.73245421,0.000199,2]
[358375057,1745013031524,-761.8423,0.000199,2]
[358375058,1745013031533,-520.89818679,0.000199,2]
[358375059,1745013031543,-409.7454,0.000199,2]
[358375060,1745013031552,-203.4307,0.000199,2]
[358375061,1745013031561,-1783.51443506,0.000199,2]
[358375062,1745013031571,-168.25741301,0.000199,2]
[358375063,1745013031580,-177.40018702,0.000199,2]
[358375064,1745013031590,-203.49,0.00019922,2]
[358375065,1745013031599,-385.0,0.00019956,2]
[358375066,1745013031608,-12882.90420843,0.00019957,2]
[358375067,1745013031621,-11017.09579157,0.00019957,2]
[358375068,1745013031631,-506.41551795,0.00019973,2]
[358375069,1745013031641,-500.0,0.00019973,2]
[358375070,1745013031650,-500.0,0.00019973,2]
[358375071,1745013031659,-2493.658,0.00019985,2]
[358375072,1745013031669,-665.47495867,0.00019985,2]
[358375073,1745013031678,-1222.8696309,0.00019986,2]
[358375074,1745013031688,-3054.3874293,0.00019986,2]
[358375075,1745013031697,-20410.0676081,0.00019986,2]
[358375077,1745013031707,-170.71675579,0.0001999,2]
[358375078,1745013031716,-300.0,0.00019999,2]
[358375080,1745013031725,-16524.48,0.00019999,2]
[358375082,1745013031735,-40857.03887248,0.0002,2]
[358375085,1745013031747,-10287.47327553,0.0002,2]
[358375087,1745013031758,-1950.14900921,0.0002,2]
[358375089,1745013031770,-450.11560118,0.0002,2]
[358375091,1745013031781,-4985.21163903,0.0002,2]
[358375093,1745013031794,-7557.6234285,0.0002,2]
[358375096,1745013031805,-362.5,0.0002,2]
[358375098,1745013031816,-858.5577,0.0002,2]
[358375100,1745013031830,-510.674481,0.0002,2]
[358375102,1745013031842,-979.13271075,0.0002,2]
[358375224,1745013037590,-1604.21561084,0.0002,2]
[358375225,1745013037648,-53398.96680464,0.0002,2]
[358375226,1745013037663,-624.86079436,0.0002,2]
[358375227,1745013037676,-2123.8718616,0.0002,2]
[358375228,1745013037867,-2352469.81748344,0.0002,2]
[358375230,1745013037879,-340569.66230341,0.0002,2]
[358375239,1745013039750,-639.14499996,0.0002,2]
[358375240,1745013039809,-426.27650591,0.0002,2]
[358375241,1745013039922,-596.05843895,0.0002,2]
[358375243,1745013040031,-431545.59917693,0.0002,2]
[358375250,1745013042677,-146149.09739798,0.0002,2]
[358375258,1745013044596,-1392.75204037,0.0002,2]
[358375259,1745013045586,-425.2299217,0.000199,2]
[358375260,1745013045596,-3896.4181508,0.0002,2]
[358375261,1745013045920,-22102.81384242,0.0002,2]
[358375262,1745013045932,-253.58918406,0.0002,2]
[358375263,1745013045944,-78244.66088604,0.0002,2]
[358375275,1745013272564,182.28,0.00015616,2]
[358375287,1745013572969,250.0,0.00017,2]
[358375288,1745013574740,-158.93,0.00018992,2]
[358375289,1745013574765,-31.89462052,0.00019,2]
[358375290,1745013630539,299.99,0.0001994,7]
[358375292,1745013645903,-268.10537948,0.00019,2]
[358375293,1745013645928,-27.77430818,0.0001919,2]
[358375295,1745013795612,168.54,0.00027425,30]
[358375298,1745014046132,-150.0,0.00018992,2]
[358375299,1745014046154,-342.23314686,0.000191,2]
[358375300,1745014046176,-250.0,0.00019128,2]
[358375301,1745014046197,-1124.45057432,0.00019235,2]
[358375302,1745014046217,-1124.45057431,0.00019236,2]
[358375303,1745014046237,-477.15,0.00019264,2]
[358375304,1745014046258,-250.0,0.00019318,2]
[358375305,1745014046284,-300.0,0.00019335,2]
[358375306,1745014046306,-192.0,0.00019335,2]
[358375307,1745014046328,-381.02989098,0.00019335,2]
[358375308,1745014046349,-497.54472741,0.00019336,2]
[358375310,1745014053085,-963.57118475,0.00019336,2]
[358375311,1745014053114,-10602.99155388,0.00019336,2]
[358375312,1745014071257,850.77,0.00017024,2]
[358375313,1745014103722,7930.63,0.00018936,2]
[358375314,1745014184886,2460.76,0.00018796,2]
[358375315,1745014219520,299.99,0.00019373,7]
[358375316,1745014220329,486.68,0.00018804,2]
[358375328,1745014231657,-386.54518414,0.0001919,2]
[358375329,1745014231667,-445.32299052,0.00019236,2]
[358375330,1745014231716,-734.02540948,0.00019236,2]
[358375331,1745014231725,-309.15464146,0.00019273,2]
[358375332,1745014231735,-48.640521,0.00019288,2]
[358375333,1745014231776,-802.129479,0.00019288,2]
[358375334,1745014231786,-327.19637314,0.000193,2]
[358375335,1745014231796,-2.4563282,0.00019312,2]
[358375336,1745014231807,-306.69831324,0.00019312,2]
[358375337,1745014231817,-300.0,0.00019335,2]
[358375338,1745014231826,-300.0,0.00019335,2]
[358375339,1745014231836,-47730.92023006,0.00019336,2]
[358375340,1745014231846,-309.15464144,0.0001935,2]
[358375341,1745014231855,-15217.77,0.00019373,2]
[358375342,1745014231864,-993.77,0.00019373,2]
[358375343,1745014231874,-4545.1,0.00019373,2]
[358375344,1745014231884,-150.99,0.00019373,2]
[358375345,1745014231893,-9999.99,0.00019373,2]
[358375346,1745014231902,-499.99,0.00019373,2]
[358375347,1745014231912,-150.99,0.00019373,2]
[358375348,1745014231922,-550.0,0.00019423,2]
[358375349,1745014231932,-1000.0,0.00019424,2]
[358375350,1745014231942,-23900.0,0.00019436,2]
[358375351,1745014231951,-2800.39,0.0001945,2]
[358375353,1745014231961,-170.24,0.00019598,2]
[358375355,1745014231971,-386.54518414,0.00019658,2]
[358375357,1745014231980,-386.54518416,0.00019789,2]
[358375359,1745014231990,-476.7733309,0.00019799,2]